fUSD/lending_fUSD_20240426
["ID","MTS","AMOUNT","RATE_DAILY","PERIOD"]
[323691276,1714165881147,-500.0,0.00013424,2]
[323691277,1714165881157,-500.0,0.00013424,2]
[323691278,1714165881166,-184.35,0.00013424,2]
[323691279,1714165881175,-500.0,0.00013424,2]
[323691280,1714165881184,-921.09,0.00013424,2]
[323691281,1714165881194,-500.0,0.00013424,2]
[323691282,1714165881203,-700.07,0.00013424,2]
[323691283,1714165881213,-1367.84,0.00013424,2]
[323691284,1714165881222,-748.97,0.00013424,2]
[323691285,1714165881232,-760.98,0.00013424,2]
[323691286,1714165881241,-500.0,0.00013424,2]
[323691287,1714165881251,-726.54,0.00013424,2]
[323691288,1714165881260,-550.92,0.00013424,2]
[323691289,1714165881270,-1430.99,0.00013424,2]
[323691290,1714165881281,-570.48,0.00013424,2]
[323691291,1714165881294,-676.01,0.00013424,2]
[323691292,1714165881304,-500.0,0.00013424,2]
[323691293,1714165881314,-500.0,0.00013424,2]
[323691294,1714165881323,-1217.26,0.00013424,2]
[323691295,1714165881334,-792.02,0.00013424,2]
[323691296,1714165881344,-500.0,0.00013424,2]
[323691297,1714165881353,-500.0,0.00013424,2]
[323691298,1714165881363,-500.0,0.00013424,2]
[323691299,1714165881373,-725.24,0.00013424,2]
[323691300,1714165881382,-500.0,0.00013424,2]
[323691301,1714165881392,-872.88,0.00013424,2]
[323691302,1714165881402,-940.41,0.00013424,2]
[323691303,1714165881411,-221.85374425,0.00013424,2]
[323691304,1714165881420,-2000.0,0.00013424,2]
[323691305,1714165881430,-509.95,0.00013424,2]
[323691306,1714165881439,-803.02,0.00013424,2]
[323691307,1714165881449,-363.21,0.00013424,2]
[323691308,1714165881458,-500.0,0.00013424,2]
[323691309,1714165881467,-749.95,0.00013424,2]
[323691310,1714165881476,-527.35,0.00013424,2]
[323691311,1714165881486,-500.0,0.00013424,2]
[323691312,1714165881495,-565.11,0.00013424,2]
[323691313,1714165881505,-656.68,0.00013424,2]
[323691314,1714165881514,-500.0,0.00013424,2]
[323691315,1714165881524,-626.53,0.00013424,2]
[323691316,1714165881533,-1008.89,0.00013424,2]
[323691317,1714165881542,-500.0,0.00013424,2]
[323691318,1714165881552,-837.59,0.00013424,2]
[323691319,1714165881561,-525.53,0.00013424,2]
[323691320,1714165881571,-1849.17,0.00013424,2]
[323691321,1714165881580,-565.57,0.00013424,2]
[323691322,1714165881589,-500.0,0.00013424,2]
[323691323,1714165881599,-1095.79,0.00013424,2]
[323691324,1714165881609,-500.0,0.00013424,2]
[323691325,1714165881621,-1100.72,0.00013424,2]
[323691326,1714165881630,-500.0,0.00013424,2]
[323691327,1714165881641,-500.0,0.00013424,2]
[323691328,1714165881650,-500.0,0.00013424,2]
[323691329,1714165881659,-609.39,0.00013424,2]
[323691330,1714165881668,-500.0,0.00013424,2]
[323691331,1714165881677,-1415.44,0.00013424,2]
[323691332,1714165881686,-721.08,0.00013424,2]
[323691333,1714165881695,-500.0,0.00013424,2]
[323691334,1714165881704,-500.0,0.00013424,2]
[323691335,1714165881713,-521.34,0.00013424,2]
[323691336,1714165881722,-5617.73,0.00013424,2]
[323691337,1714165881732,-8630.93,0.00013424,2]
[323691338,1714165881741,-1052.38,0.00013424,2]
[323691339,1714165881750,-500.0,0.00013424,2]
[323691340,1714165881759,-1229.82,0.00013424,2]
[323691341,1714165881768,-6867.51,0.00013424,2]
[323691342,1714165881777,-600.27,0.00013424,2]
[323691343,1714165881786,-1794.51,0.00013424,2]
[323691344,1714165881795,-7720.32,0.00013424,2]
[323691345,1714165881804,-1596.74,0.00013424,2]
[323691346,1714165881814,-2414.19,0.00013424,2]
[323691347,1714165881823,-500.0,0.00013424,2]
[323691348,1714165881832,-2546.68,0.00013424,2]
[323691349,1714165881842,-11893.77,0.00013424,2]
[323691350,1714165881851,-509.99091079,0.00013424,2]
[323691351,1714165881860,-500.0,0.00013424,2]
[323691352,1714165881870,-500.0,0.00013424,2]
[323691353,1714165881880,-1472.99,0.00013424,2]
[323691354,1714165881889,-1714.54,0.00013424,2]
[323691355,1714165881899,-500.0,0.00013424,2]
[323691356,1714165881908,-3379.18,0.00013424,2]
[323691357,1714165881918,-746.33,0.00013424,2]
[323691358,1714165881927,-500.0,0.00013424,2]
[323691359,1714165881936,-1131.17,0.00013424,2]
[323691360,1714165881945,-500.0,0.00013424,2]
[323691361,1714165881955,-1362.32,0.00013424,2]
[323691362,1714165881968,-635.79,0.00013424,2]
[323691363,1714165882032,-1226.03,0.00013424,2]
[323691364,1714165882043,-1261.3,0.00013424,2]
[323691365,1714165882053,-2565.0,0.00013424,2]
[323691366,1714165882064,-6474.87,0.00013424,2]
[323691367,1714165882073,-626.49,0.00013424,2]
[323691368,1714165882084,-5265.92,0.00013424,2]
[323691369,1714165882093,-7575.76,0.00013424,2]
[323691370,1714165882102,-959.47,0.00013424,2]
[323691371,1714165882112,-500.0,0.00013424,2]
[323691372,1714165882121,-894.84,0.00013424,2]
[323691373,1714165882130,-1029.44,0.00013424,2]
[323691374,1714165882140,-1594.94,0.00013424,2]
[323691375,1714165882151,-1585.92,0.00013424,2]
[323691376,1714165882161,-927.21,0.00013424,2]
[323691377,1714165882172,-29278.54,0.00013424,2]
[323691378,1714165882182,-598.42,0.00013424,2]
[323691379,1714165882191,-2169.32,0.00013424,2]
[323691380,1714165882201,-500.0,0.00013424,2]
[323691381,1714165882211,-1031.64,0.00013424,2]
[323691382,1714165882222,-3003.77,0.00013424,2]
[323691383,1714165882231,-500.0,0.00013424,2]
[323691384,1714165882240,-500.0,0.00013424,2]
[323691385,1714165882249,-885.97,0.00013424,2]
[323691386,1714165882261,-1452.7,0.00013424,2]
[323691387,1714165882271,-500.0,0.00013424,2]
[323691388,1714165882280,-1299.05,0.00013424,2]
[323691389,1714165882292,-964.95,0.00013424,2]
[323691390,1714165882302,-6953.47,0.00013424,2]
[323691391,1714165882311,-598.29,0.00013424,2]
[323691392,1714165882320,-2182.8,0.00013424,2]
[323691393,1714165882331,-500.0,0.00013424,2]
[323691394,1714165882341,-1173.04,0.00013424,2]
[323691395,1714165882350,-2149.24,0.00013424,2]
[323691396,1714165882359,-831.79,0.00013424,2]
[323691397,1714165882368,-2022.3,0.00013424,2]
[323691398,1714165882379,-4234.92,0.00013424,2]
[323691399,1714165882388,-2096.72,0.00013424,2]
[323691400,1714165882398,-1713.59,0.00013424,2]
[323691401,1714165882407,-625.39,0.00013424,2]
[323691402,1714165882419,-3159.71,0.00013424,2]
[323691403,1714165882430,-1338.07,0.00013424,2]
[323691404,1714165882441,-629.77,0.00013424,2]
[323691405,1714165882451,-15953.33,0.00013424,2]
[323691406,1714165882459,-500.0,0.00013424,2]
[323691407,1714165882469,-2250.5,0.00013424,2]
[323691408,1714165882478,-2333.3,0.00013424,2]
[323691409,1714165882490,-8716.91,0.00013424,2]
[323691410,1714165882500,-4686.34,0.00013424,2]
[323691411,1714165882511,-2136.27,0.00013424,2]
[323691412,1714165882522,-1350.24,0.00013424,2]
[323691413,1714165882533,-1193.75,0.00013424,2]
[323691414,1714165882542,-1860.65,0.00013424,2]
[323691415,1714165882553,-1152.1,0.00013424,2]
[323691416,1714165882563,-3493.58,0.00013424,2]
[323691417,1714165882572,-720.21,0.00013424,2]
[323691418,1714165882582,-1609.49,0.00013424,2]
[323691419,1714165882590,-743.96,0.00013424,2]
[323691420,1714165882600,-4354.83,0.00013424,2]
[323691421,1714165882610,-902.48,0.00013424,2]
[323691422,1714165882619,-771.76,0.00013424,2]
[323691423,1714165882628,-937.47,0.00013424,2]
[323691424,1714165882637,-563.05,0.00013424,2]
[323691425,1714165882647,-1806.19,0.00013424,2]
[323691426,1714165882656,-1571.07,0.00013424,2]
[323691427,1714165882665,-2572.91,0.00013424,2]
[323691428,1714165882674,-1736.03,0.00013424,2]
[323691429,1714165882683,-4550.03,0.00013424,2]
[323691430,1714165882692,-702.48,0.00013424,2]
[323691431,1714165882701,-2483.94,0.00013424,2]
[323691432,1714165882710,-683.53,0.00013424,2]
[323691433,1714165882719,-2118.68,0.00013424,2]
[323691434,1714165882729,-2305.98,0.00013424,2]
[323691435,1714165882738,-2824.94,0.00013424,2]
[323691436,1714165882747,-1519.98,0.00013424,2]
[323691437,1714165882756,-1443.87,0.00013424,2]
[323691438,1714165882766,-500.0,0.00013424,2]
[323691439,1714165882775,-1079.67,0.00013424,2]
[323691440,1714165882785,-5799.26,0.00013424,2]
[323691441,1714165882794,-2700.57,0.00013424,2]
[323691442,1714165882803,-1958.57,0.00013424,2]
[323691443,1714165882813,-500.0,0.00013424,2]
[323691444,1714165882823,-1238.29,0.00013424,2]
[323691445,1714165882832,-2076.33,0.00013424,2]
[323691446,1714165882842,-726.92,0.00013424,2]
[323691447,1714165882851,-3054.76,0.00013424,2]
[323691448,1714165882861,-978.83,0.00013424,2]
[323691449,1714165882870,-2476.96,0.00013424,2]
[323691450,1714165882879,-897.14,0.00013424,2]
[323691451,1714165882889,-1563.14,0.00013424,2]
[323691452,1714165882898,-1893.28,0.00013424,2]
[323691453,1714165882908,-900.63,0.00013424,2]
[323691454,1714165882917,-1013.72,0.00013424,2]
[323691455,1714165882927,-718.21,0.00013424,2]
[323691456,1714165882936,-555.79,0.00013424,2]
[323691457,1714165882946,-6088.6,0.00013424,2]
[323691458,1714165882956,-1066.3,0.00013424,2]
[323691459,1714165882965,-500.0,0.00013424,2]
[323691460,1714165882974,-505.04,0.00013424,2]
[323691461,1714165882984,-2410.31,0.00013424,2]
[323691462,1714165882994,-820.43,0.00013424,2]
[323691463,1714165883003,-523.49,0.00013424,2]
[323691464,1714165883013,-908.81,0.00013424,2]
[323691465,1714165883022,-1371.32,0.00013424,2]
[323691466,1714165883032,-500.0,0.00013424,2]
[323691467,1714165883041,-2025.12,0.00013424,2]
[323691468,1714165883052,-560.23,0.00013424,2]
[323691469,1714165883062,-3137.06,0.00013424,2]
[323691470,1714165883072,-500.0,0.00013424,2]
[323691471,1714165883081,-619.95119556,0.00013424,2]
[323691472,1714165883092,-578.95,0.00013424,2]
[323691473,1714165883101,-314.71089472,0.00013424,2]
[323691474,1714165883112,-995.94,0.00013424,2]
[323691475,1714165883121,-2682.02,0.00013424,2]
[323691476,1714165883131,-500.0,0.00013424,2]
[323691477,1714165883141,-500.0,0.00013424,2]
[323691478,1714165883150,-500.0,0.00013424,2]
[323691479,1714165883160,-1815.94,0.00013424,2]
[323691480,1714165883170,-500.0,0.00013424,2]
[323691481,1714165883179,-500.0,0.00013424,2]
[323691482,1714165883188,-12102.83,0.00013425,2]
[323691483,1714165883198,-1137.0,0.00013452,2]
[323691484,1714165883207,-500.0,0.00013467,2]
[323691485,1714165883219,-150.0,0.00013469,2]
[323691486,1714165883229,-500.0,0.00013476,2]
[323691487,1714165883238,-500.0,0.00013485,2]
[323691488,1714165883249,-500.0,0.00013493,2]
[323691489,1714165883258,-1000.0,0.000135,2]
[323691490,1714165883268,-1000.0,0.000135,2]
[323691491,1714165883278,-842.0,0.000135,2]
[323691492,1714165883290,-500.0,0.00013502,2]
[323691493,1714165883302,-500.0,0.00013511,2]
[323691494,1714165883311,-500.0,0.0001352,2]
[323691495,1714165883320,-500.0,0.0001352,2]
[323691496,1714165883331,-500.0,0.00013529,2]
[323691497,1714165883342,-500.0,0.00013529,2]
[323691498,1714165883352,-500.0,0.00013529,2]
[323691499,1714165883361,-500.0,0.00013537,2]
[323691500,1714165883371,-500.0,0.00013537,2]
[323691501,1714165883381,-500.0,0.00013537,2]
[323691502,1714165883392,-500.0,0.00013537,2]
[323691503,1714165883402,-150.0,0.00013672,2]
[323691504,1714165883411,-177.55,0.00013688,2]
[323691505,1714165883421,-500.0,0.00013698,2]
[323691506,1714165883433,-500.0,0.00013698,2]
[323691507,1714165883442,-1000.0,0.00013698,5]
[323691508,1714165883452,-1000.0,0.00013698,5]
[323691509,1714165883461,-1000.0,0.00013698,5]
[323691510,1714165883470,-1003.00252328,0.00013698,5]
[323691511,1714165883480,-500.0,0.00013698,2]
[323691512,1714165883490,-500.0,0.00013698,2]
[323691513,1714165883501,-615.87,0.00013698,2]
[323691514,1714165883512,-500.0,0.00013698,2]
[323691515,1714165883522,-500.0,0.00013698,2]
[323691516,1714165883533,-500.0,0.00013698,2]
[323691517,1714165883542,-500.0,0.00013698,2]
[323691518,1714165883552,-609.49,0.00013698,2]
[323691519,1714165883562,-500.0,0.00013698,2]
[323691520,1714165883572,-654.47,0.00013698,2]
[323691521,1714165883581,-678.23,0.00013698,2]
[323691522,1714165883590,-613.12,0.00013698,2]
[323691523,1714165883600,-646.77,0.00013698,2]
[323691524,1714165883609,-530.65,0.00013698,2]
[323691525,1714165883618,-880.46,0.00013698,2]
[323691526,1714165883627,-1006.3,0.00013698,2]
[323691527,1714165883636,-500.0,0.00013698,2]
[323691528,1714165883645,-500.0,0.00013698,2]
[323691529,1714165883654,-1261.56,0.00013698,2]
[323691530,1714165883663,-1360.51,0.00013698,2]
[323691531,1714165883672,-504.93,0.00013698,2]
[323691532,1714165883681,-1108.07,0.00013698,2]
[323691533,1714165883691,-500.0,0.00013698,2]
[323691534,1714165883701,-822.7,0.00013698,2]
[323691535,1714165883710,-543.02,0.00013698,2]
[323691536,1714165883719,-500.0,0.00013698,2]
[323691537,1714165883728,-1146.38,0.00013698,2]
[323691538,1714165883738,-1304.31,0.00013698,2]
[323691539,1714165883747,-560.91,0.00013698,2]
[323691540,1714165883756,-500.0,0.00013698,2]
[323691541,1714165883766,-500.0,0.00013698,2]
[323691542,1714165883775,-500.0,0.00013698,2]
[323691543,1714165883784,-921.09,0.00013698,2]
[323691544,1714165883794,-500.0,0.00013698,2]
[323691545,1714165883803,-700.07,0.00013698,2]
[323691546,1714165883812,-1367.84,0.00013698,2]
[323691547,1714165883822,-748.97,0.00013698,2]
[323691548,1714165883832,-760.98,0.00013698,2]
[323691549,1714165883841,-500.0,0.00013698,2]
[323691550,1714165883850,-726.54,0.00013698,2]
[323691551,1714165883859,-550.92,0.00013698,2]
[323691552,1714165883869,-1430.99,0.00013698,2]
[323691553,1714165883880,-570.48,0.00013698,2]
[323691554,1714165883889,-676.01,0.00013698,2]
[323691555,1714165883898,-500.0,0.00013698,2]
[323691556,1714165883908,-500.0,0.00013698,2]
[323691557,1714165883919,-1217.26,0.00013698,2]
[323691558,1714165883928,-792.02,0.00013698,2]
[323691559,1714165883937,-500.0,0.00013698,2]
[323691560,1714165883946,-500.0,0.00013698,2]
[323691561,1714165883956,-500.0,0.00013698,2]
[323691562,1714165883965,-725.24,0.00013698,2]
[323691563,1714165883974,-500.0,0.00013698,2]
[323691564,1714165883983,-872.88,0.00013698,2]
[323691565,1714165883991,-940.41,0.00013698,2]
[323691566,1714165884001,-2000.0,0.00013698,2]
[323691567,1714165884010,-509.95,0.00013698,2]
[323691568,1714165884020,-803.02,0.00013698,2]
[323691569,1714165884030,-363.21,0.00013698,2]
[323691570,1714165884040,-500.0,0.00013698,2]
[323691571,1714165884050,-749.95,0.00013698,2]
[323691572,1714165884060,-527.35,0.00013698,2]
[323691573,1714165884070,-500.0,0.00013698,2]
[323691574,1714165884080,-565.11,0.00013698,2]
[323691575,1714165884090,-656.68,0.00013698,2]
[323691576,1714165884098,-500.0,0.00013698,2]
[323691577,1714165884108,-626.53,0.00013698,2]
[323691578,1714165884117,-1008.89,0.00013698,2]
[323691579,1714165884127,-500.0,0.00013698,2]
[323691580,1714165884136,-837.59,0.00013698,2]
[323691581,1714165884147,-525.53,0.00013698,2]
[323691582,1714165884156,-1849.17,0.00013698,2]
[323691583,1714165884165,-565.57,0.00013698,2]
[323691584,1714165884174,-500.0,0.00013698,2]
[323691585,1714165884183,-1095.79,0.00013698,2]
[323691586,1714165884192,-500.0,0.00013698,2]
[323691587,1714165884202,-1100.72,0.00013698,2]
[323691588,1714165884212,-233.736221,0.00013698,2]
[323691589,1714165884223,-500.0,0.00013698,2]
[323691590,1714165884234,-500.0,0.00013698,2]
[323691591,1714165884245,-609.39,0.00013698,2]
[323691592,1714165884254,-500.0,0.00013698,2]
[323691593,1714165884263,-1415.44,0.00013698,2]
[323691594,1714165884272,-721.08,0.00013698,2]
[323691595,1714165884282,-287.13287952,0.00013698,2]
[323691596,1714165884295,-500.0,0.00013698,2]
[323691597,1714165884305,-521.34,0.00013698,2]
[323691598,1714165884314,-5617.73,0.00013698,2]
[323691599,1714165884324,-8630.93,0.00013698,2]
[323691600,1714165884335,-1052.38,0.00013698,2]
[323691601,1714165884344,-500.0,0.00013698,2]
[323691602,1714165884353,-1229.82,0.00013698,2]
[323691603,1714165884363,-6867.51,0.00013698,2]
[323691604,1714165884374,-600.27,0.00013698,2]
[323691605,1714165884383,-1794.51,0.00013698,2]
[323691606,1714165884393,-7720.32,0.00013698,2]
[323691607,1714165884402,-1596.74,0.00013698,2]
[323691608,1714165884411,-2414.19,0.00013698,2]
[323691609,1714165884421,-500.0,0.00013698,2]
[323691610,1714165884430,-2546.68,0.00013698,2]
[323691611,1714165884440,-11893.77,0.00013698,2]
[323691612,1714165884450,-500.0,0.00013698,2]
[323691613,1714165884462,-500.0,0.00013698,2]
[323691614,1714165884471,-1472.99,0.00013698,2]
[323691615,1714165884480,-1714.54,0.00013698,2]
[323691616,1714165884491,-500.0,0.00013698,2]
[323691617,1714165884502,-3379.18,0.00013698,2]
[323691618,1714165884514,-746.33,0.00013698,2]
[323691619,1714165884524,-500.0,0.00013698,2]
[323691620,1714165884534,-1131.17,0.00013698,2]
[323691621,1714165884543,-500.0,0.00013698,2]
[323691622,1714165884555,-1362.32,0.00013698,2]
[323691623,1714165884564,-635.79,0.00013698,2]
[323691624,1714165884573,-1226.03,0.00013698,2]
[323691625,1714165884582,-1261.3,0.00013698,2]
[323691626,1714165884590,-2565.0,0.00013698,2]
[323691627,1714165884599,-6474.87,0.00013698,2]
[323691628,1714165884609,-626.49,0.00013698,2]
[323691629,1714165884618,-5265.92,0.00013698,2]
[323691630,1714165884627,-7575.76,0.00013698,2]
[323691631,1714165884640,-959.47,0.00013698,2]
[323691632,1714165884649,-500.0,0.00013698,2]
[323691633,1714165884658,-894.84,0.00013698,2]
[323691634,1714165884667,-1029.44,0.00013698,2]
[323691635,1714165884676,-1594.94,0.00013698,2]
[323691636,1714165884685,-1585.92,0.00013698,2]
[323691637,1714165884695,-927.21,0.00013698,2]
[323691638,1714165884704,-29278.54,0.00013698,2]
[323691639,1714165884714,-598.42,0.00013698,2]
[323691640,1714165884725,-2169.32,0.00013698,2]
[323691641,1714165884735,-500.0,0.00013698,2]
[323691642,1714165884745,-1031.64,0.00013698,2]
[323691643,1714165884754,-3003.77,0.00013698,2]
[323691644,1714165884765,-500.0,0.00013698,2]
[323691645,1714165884774,-328.67,0.00013698,2]
[323691646,1714165884786,-885.97,0.00013698,2]
[323691647,1714165884795,-1452.7,0.00013698,2]
[323691648,1714165884806,-500.0,0.00013698,2]
[323691649,1714165884816,-1299.05,0.00013698,2]
[323691650,1714165884825,-964.95,0.00013698,2]
[323691651,1714165884835,-6953.47,0.00013698,2]
[323691652,1714165884844,-598.29,0.00013698,2]
[323691653,1714165884854,-2182.8,0.00013698,2]
[323691654,1714165884863,-500.0,0.00013698,2]
[323691655,1714165884873,-1173.04,0.00013698,2]
[323691656,1714165884883,-2149.24,0.00013698,2]
[323691657,1714165884893,-831.79,0.00013698,2]
[323691658,1714165884904,-2022.3,0.00013698,2]
[323691659,1714165884913,-4234.92,0.00013698,2]
[323691660,1714165884923,-2096.72,0.00013698,2]
[323691661,1714165884934,-1713.59,0.00013698,2]
[323691662,1714165884943,-625.39,0.00013698,2]
[323691663,1714165884953,-3159.71,0.00013698,2]
[323691664,1714165884962,-1338.07,0.00013698,2]
[323691665,1714165884972,-629.77,0.00013698,2]
[323691666,1714165884981,-15953.33,0.00013698,2]
[323691667,1714165884991,-500.0,0.00013698,2]
[323691668,1714165885000,-2250.5,0.00013698,2]
[323691669,1714165885010,-2333.3,0.00013698,2]
[323691670,1714165885019,-8716.91,0.00013698,2]
[323691671,1714165885029,-4686.34,0.00013698,2]
[323691672,1714165885038,-2136.27,0.00013698,2]
[323691673,1714165885048,-1350.24,0.00013698,2]
[323691674,1714165885057,-1193.75,0.00013698,2]
[323691675,1714165885067,-1860.65,0.00013698,2]
[323691676,1714165885077,-1152.1,0.00013698,2]
[323691677,1714165885086,-3493.58,0.00013698,2]
[323691678,1714165885095,-720.21,0.00013698,2]
[323691679,1714165885105,-1609.49,0.00013698,2]
[323691680,1714165885114,-743.96,0.00013698,2]
[323691681,1714165885124,-4354.83,0.00013698,2]
[323691682,1714165885134,-902.48,0.00013698,2]
[323691683,1714165885143,-771.76,0.00013698,2]
[323691684,1714165885152,-937.47,0.00013698,2]
[323691685,1714165885161,-563.05,0.00013698,2]
[323691686,1714165885171,-1806.19,0.00013698,2]
[323691687,1714165885180,-1571.07,0.00013698,2]
[323691688,1714165885189,-2572.91,0.00013698,2]
[323691689,1714165885197,-1736.03,0.00013698,2]
[323691690,1714165885206,-4550.03,0.00013698,2]
[323691691,1714165885215,-702.48,0.00013698,2]
[323691692,1714165885224,-2483.94,0.00013698,2]
[323691693,1714165885233,-683.53,0.00013698,2]
[323691694,1714165885242,-2118.68,0.00013698,2]
[323691695,1714165885251,-2305.98,0.00013698,2]
[323691696,1714165885261,-2824.94,0.00013698,2]
[323691697,1714165885270,-1519.98,0.00013698,2]
[323691698,1714165885283,-1443.87,0.00013698,2]
[323691699,1714165885318,-1079.67,0.00013698,2]
[323691700,1714165885330,-500.0,0.00013698,2]
[323691701,1714165885341,-5799.26,0.00013698,2]
[323691702,1714165885350,-2700.57,0.00013698,2]
[323691703,1714165885361,-1958.57,0.00013698,2]
[323691704,1714165885374,-500.0,0.00013698,2]
[323691705,1714165885384,-1238.29,0.00013698,2]
[323691706,1714165885394,-2076.33,0.00013698,2]
[323691707,1714165885405,-726.92,0.00013698,2]
[323691708,1714165885416,-3054.76,0.00013698,2]
[323691709,1714165885425,-978.83,0.00013698,2]
[323691710,1714165885435,-2476.96,0.00013698,2]
[323691711,1714165885445,-897.14,0.00013698,2]
[323691712,1714165885455,-1563.14,0.00013698,2]
[323691713,1714165885466,-1893.28,0.00013698,2]
[323691714,1714165885476,-900.63,0.00013698,2]
[323691715,1714165885486,-1013.72,0.00013698,2]
[323691716,1714165885496,-718.21,0.00013698,2]
[323691717,1714165885508,-555.79,0.00013698,2]
[323691718,1714165885519,-6088.6,0.00013698,2]
[323691719,1714165885531,-1066.3,0.00013698,2]
[323691720,1714165885542,-500.0,0.00013698,2]
[323691721,1714165885554,-505.04,0.00013698,2]
[323691722,1714165885564,-2410.31,0.00013698,2]
[323691723,1714165885583,-820.43,0.00013698,2]
[323691724,1714165885593,-523.49,0.00013698,2]
[323691725,1714165885603,-74149.74055038,0.00013698,2]
[323691726,1714165885614,-908.81,0.00013698,2]
[323691727,1714165885624,-500.0,0.00013698,2]
[323691728,1714165885633,-1371.32,0.00013698,2]
[323691729,1714165885642,-2025.12,0.00013698,2]
[323691730,1714165885651,-560.23,0.00013698,2]
[323691731,1714165885661,-3137.06,0.00013698,2]
[323691732,1714165885670,-500.0,0.00013698,2]
[323691733,1714165885679,-578.95,0.00013698,2]
[323691734,1714165885689,-995.94,0.00013698,2]
[323691735,1714165885699,-2682.02,0.00013698,2]
[323691736,1714165885709,-500.0,0.00013698,2]
[323691737,1714165885718,-500.0,0.00013698,2]
[323691738,1714165885728,-500.0,0.00013698,2]
[323691739,1714165885738,-1815.94,0.00013698,2]
[323691740,1714165885747,-500.0,0.00013698,2]
[323691741,1714165885757,-500.0,0.00013698,2]
[323691742,1714165885767,-200.0,0.00013699,2]
[323691743,1714165885776,-200.0,0.00013699,2]
[323691744,1714165885785,-200.0,0.00013699,2]
[323691745,1714165885795,-200.0,0.00013699,2]
[323691746,1714165885805,-200.0,0.00013699,2]
[323691747,1714165885816,-200.0,0.00013699,2]
[323691748,1714165885826,-200.0,0.00013699,2]
[323691749,1714165885836,-200.0,0.00013699,2]
[323691750,1714165885846,-200.0,0.00013699,2]
[323691751,1714165885855,-200.0,0.00013699,2]
[323691752,1714165885864,-200.0,0.00013699,2]
[323691753,1714165885874,-200.0,0.00013699,2]
[323691754,1714165885883,-200.0,0.00013699,2]
[323691755,1714165885894,-200.0,0.00013699,2]
[323691756,1714165885903,-200.0,0.00013699,2]
[323691757,1714165885913,-200.0,0.00013699,2]
[323691758,1714165885922,-200.0,0.00013699,2]
[323691759,1714165885932,-200.0,0.00013699,2]
[323691760,1714165885942,-200.0,0.00013699,2]
[323691761,1714165885951,-200.0,0.00013699,2]
[323691762,1714165885960,-200.0,0.00013699,2]
[323691763,1714165885970,-200.0,0.00013699,2]
[323691764,1714165885979,-151.0,0.00013699,2]
[323691765,1714165885989,-151.0,0.00013699,2]
[323691766,1714165885998,-151.0,0.00013699,2]
[323691767,1714165886007,-151.0,0.00013699,2]
[323691768,1714165886017,-151.0,0.00013699,2]
[323691769,1714165886026,-151.0,0.00013699,2]
[323691770,1714165886036,-151.0,0.00013699,2]
[323691771,1714165886046,-151.0,0.00013699,2]
[323691772,1714165886055,-151.0,0.00013699,2]
[323691773,1714165886064,-151.0,0.00013699,2]
[323691774,1714165886074,-151.0,0.00013699,2]
[323691775,1714165886084,-151.0,0.00013699,2]